[Event "Rapid Tournament (RAP)"]
[Site "Biel, Switzerland"]
[Date "2026.07.12"]
[Round "7.45"]
[White "Hajduk, Tomasz"]
[Black "Chu, Wa Ching David"]
[Result "1-0"]
[TimeControl "15 + 5"]
[WhiteTitle "-"]
[BlackTitle "-"]
[WhiteFideId "21811415"]
[BlackFideId "6013180"]
[WhiteElo "1879"]
[BlackElo "1723"]

1. e4 {[%clk 00:15:08]} {[%emt 00:00:01]} c5 {[%clk 00:15:09]} 2. Nf3 {[%clk
00:15:12]} {[%emt 00:00:01]} d6 {[%clk 00:15:13]} {[%emt 00:00:01]} 3. d4
{[%clk 00:15:16]} {[%emt 00:00:02]} cxd4 {[%clk 00:15:17]} 4. Nxd4 {[%clk
00:15:20]} Nf6 {[%clk 00:15:20]} {[%emt 00:00:01]} 5. Nc3 {[%clk 00:15:24]}
{[%emt 00:00:01]} g6 {[%clk 00:15:23]} {[%emt 00:00:02]} 6. f3 {[%clk
00:15:21]} {[%emt 00:00:09]} Bg7 {[%clk 00:15:25]} {[%emt 00:00:03]} 7. Be3
{[%clk 00:15:24]} {[%emt 00:00:02]} O-O {[%clk 00:15:27]} {[%emt 00:00:02]} 8.
Qd2 {[%clk 00:15:28]} {[%emt 00:00:02]} Nc6 {[%clk 00:15:30]} {[%emt 00:00:01]}
9. O-O-O {[%clk 00:15:27]} {[%emt 00:00:06]} d5 {[%clk 00:15:32]} {[%emt
00:00:02]} 10. Nxc6 {[%clk 00:15:16]} {[%emt 00:00:18]} bxc6 {[%clk 00:15:35]}
{[%emt 00:00:01]} 11. g4 {[%clk 00:14:12]} {[%emt 00:01:10]} Qa5 {[%clk
00:14:43]} {[%emt 00:00:57]} 12. e5 {[%clk 00:13:46]} {[%emt 00:00:31]} Nd7
{[%clk 00:14:41]} {[%emt 00:00:07]} 13. f4 {[%clk 00:13:27]} {[%emt 00:00:24]}
e6 {[%clk 00:14:12]} {[%emt 00:00:34]} 14. Kb1 {[%clk 00:13:05]} {[%emt
00:00:27]} c5 {[%clk 00:14:06]} {[%emt 00:00:11]} 15. Nxd5 {[%clk 00:12:18]}
{[%emt 00:00:51]} Qxd2 {[%clk 00:13:47]} {[%emt 00:00:24]} 16. Ne7+ {[%clk
00:12:22]} {[%emt 00:00:01]} Kh8 {[%clk 00:13:51]} {[%emt 00:00:02]} 17. Rxd2
{[%clk 00:12:25]} {[%emt 00:00:02]} Re8 {[%clk 00:13:53]} {[%emt 00:00:01]} 18.
Nxc8 {[%clk 00:12:28]} {[%emt 00:00:04]} Raxc8 {[%clk 00:13:05]} {[%emt
00:00:52]} 19. Rxd7 {[%clk 00:12:31]} {[%emt 00:00:03]} c4 {[%clk 00:12:59]}
{[%emt 00:00:11]} 20. Be2 {[%clk 00:11:59]} {[%emt 00:00:37]} c3 {[%clk
00:13:00]} {[%emt 00:00:04]} 21. b3 {[%clk 00:11:31]} {[%emt 00:00:33]} Bf8
{[%clk 00:12:54]} {[%emt 00:00:11]} 22. h4 {[%clk 00:11:07]} {[%emt 00:00:29]}
Red8 {[%clk 00:12:23]} {[%emt 00:00:35]} 23. Rhd1 {[%clk 00:11:10]} {[%emt
00:00:02]} Rxd7 {[%clk 00:12:04]} {[%emt 00:00:24]} 24. Rxd7 {[%clk 00:11:14]}
{[%emt 00:00:01]} Bc5 {[%clk 00:12:04]} {[%emt 00:00:05]} 25. Bxc5 {[%clk
00:10:48]} {[%emt 00:00:29]} Rxc5 {[%clk 00:12:07]} {[%emt 00:00:04]} 26. Rxa7
{[%clk 00:10:46]} {[%emt 00:00:07]} Rd5 {[%clk 00:12:05]} {[%emt 00:00:07]} 27.
Bd3 {[%clk 00:10:50]} Rd4 {[%clk 00:12:07]} {[%emt 00:00:03]} 28. Ra4 {[%clk
00:10:53]} {[%emt 00:00:02]} Rd7 {[%clk 00:12:01]} {[%emt 00:00:10]} 29. Rc4
{[%clk 00:10:57]} {[%emt 00:00:02]} h5 {[%clk 00:12:02]} {[%emt 00:00:04]} 30.
gxh5 {[%clk 00:10:58]} {[%emt 00:00:05]} gxh5 {[%clk 00:12:05]} {[%emt
00:00:01]} 31. a4 {[%clk 00:10:59]} {[%emt 00:00:04]} Kg7 {[%clk 00:12:03]}
{[%emt 00:00:07]} 32. a5 {[%clk 00:11:00]} {[%emt 00:00:05]} f6 {[%clk
00:12:06]} {[%emt 00:00:01]} 33. a6 {[%clk 00:11:01]} {[%emt 00:00:05]} fxe5
{[%clk 00:12:09]} {[%emt 00:00:02]} 34. fxe5 {[%clk 00:11:05]} Ra7 {[%clk
00:12:00]} {[%emt 00:00:13]} 35. Rxc3 {[%clk 00:11:06]} {[%emt 00:00:04]} Kh6
{[%clk 00:11:28]} {[%emt 00:00:37]} 36. b4 {[%clk 00:11:06]} {[%emt 00:00:05]}
Rd7 {[%clk 00:11:24]} {[%emt 00:00:09]} 37. b5 {[%clk 00:11:06]} {[%emt
00:00:06]} Ra7 {[%clk 00:10:36]} {[%emt 00:00:53]} 38. b6 {[%clk 00:11:09]}
{[%emt 00:00:02]} Ra8 {[%clk 00:10:40]} 39. b7 {[%clk 00:11:10]} {[%emt
00:00:04]} Rb8 {[%clk 00:10:41]} {[%emt 00:00:04]} 40. Rc8 {[%clk 00:11:14]}
Kg7 {[%clk 00:10:16]} {[%emt 00:00:30]} 41. Rxb8 {[%clk 00:11:16]} {[%emt
00:00:03]} Kh6 {[%clk 00:10:17]} {[%emt 00:00:04]} 42. Rc8 {[%clk 00:11:16]}
{[%emt 00:00:05]} Kg7 {[%clk 00:10:20]} {[%emt 00:00:02]} 43. b8=Q {[%clk
00:11:17]} {[%emt 00:00:05]} Kh6 {[%clk 00:10:23]} {[%emt 00:00:02]} 44. Rh8+
{[%clk 00:11:13]} {[%emt 00:00:07]} Kg7 {[%clk 00:10:27]} {[%emt 00:00:02]} 45.
Qg8# {[%emt 00:00:02]} 1-0

[Event "Rapid Tournament (RAP)"]
[Site "Biel, Switzerland"]
[Date "2026.07.12"]
[Round "7.46"]
[White "Bachmann, Daniel"]
[Black "Aryan, Goyal"]
[Result "0-1"]
[TimeControl "15 + 5"]
[WhiteTitle "-"]
[BlackTitle "-"]
[WhiteFideId "1357492"]
[BlackFideId "366108825"]
[WhiteElo "1786"]
[BlackElo "1869"]

1. e4 {[%clk 00:14:44]} {[%emt 00:00:25]} e5 {[%clk 00:15:10]} {[%emt
00:00:01]} 2. Nc3 {[%clk 00:14:46]} {[%emt 00:00:03]} Nf6 {[%clk 00:15:14]} 3.
f4 {[%clk 00:14:49]} {[%emt 00:00:02]} d5 {[%clk 00:15:18]} 4. fxe5 {[%clk
00:14:53]} {[%emt 00:00:02]} Nxe4 {[%clk 00:15:21]} {[%emt 00:00:02]} 5. Qf3
{[%clk 00:14:56]} {[%emt 00:00:02]} Nxc3 {[%clk 00:15:23]} {[%emt 00:00:03]} 6.
dxc3 {[%clk 00:15:00]} Be6 {[%clk 00:15:27]} 7. Bf4 {[%clk 00:14:51]} {[%emt
00:00:14]} Nd7 {[%clk 00:15:30]} {[%emt 00:00:03]} 8. O-O-O {[%clk 00:14:52]}
{[%emt 00:00:04]} c6 {[%clk 00:15:33]} 9. Ne2 {[%clk 00:14:46]} {[%emt
00:00:12]} Be7 {[%clk 00:15:36]} {[%emt 00:00:02]} 10. Nd4 {[%clk 00:14:49]}
{[%emt 00:00:02]} O-O {[%clk 00:15:24]} {[%emt 00:00:18]} 11. Qg3 {[%clk
00:14:29]} {[%emt 00:00:23]} Bh4 {[%clk 00:15:14]} {[%emt 00:00:15]} 12. Qe3
{[%clk 00:14:32]} {[%emt 00:00:02]} Bg4 {[%clk 00:15:09]} {[%emt 00:00:10]} 13.
Be2 {[%clk 00:14:04]} {[%emt 00:00:33]} Bxe2 {[%clk 00:15:11]} {[%emt
00:00:03]} 14. Qxe2 {[%clk 00:14:07]} {[%emt 00:00:02]} Bg5 {[%clk 00:15:13]}
{[%emt 00:00:03]} 15. g3 {[%clk 00:14:07]} {[%emt 00:00:05]} Re8 {[%clk
00:14:58]} {[%emt 00:00:20]} 16. h4 {[%clk 00:14:03]} {[%emt 00:00:10]} Bxf4+
{[%clk 00:14:43]} {[%emt 00:00:20]} 17. gxf4 {[%clk 00:14:03]} {[%emt
00:00:04]} Nc5 {[%clk 00:14:39]} {[%emt 00:00:09]} 18. Rdg1 {[%clk 00:13:44]}
{[%emt 00:00:24]} Qd7 {[%clk 00:14:38]} {[%emt 00:00:07]} 19. Qg2 {[%clk
00:13:32]} {[%emt 00:00:16]} g6 {[%clk 00:14:20]} {[%emt 00:00:23]} 20. h5
{[%clk 00:13:29]} {[%emt 00:00:09]} Ne4 {[%clk 00:12:40]} {[%emt 00:01:45]} 21.
hxg6 {[%clk 00:13:18]} {[%emt 00:00:15]} fxg6 {[%clk 00:12:39]} {[%emt
00:00:06]} 22. e6 {[%clk 00:12:12]} {[%emt 00:01:12]} Rxe6 {[%clk 00:11:45]}
{[%emt 00:00:59]} 23. Nxe6 {[%clk 00:12:04]} {[%emt 00:00:12]} Qxe6 {[%clk
00:11:49]} {[%emt 00:00:01]} 24. Rf1 {[%clk 00:11:07]} {[%emt 00:01:00]} Rf8
{[%clk 00:10:50]} {[%emt 00:01:07]} 25. Qh2 {[%clk 00:10:36]} {[%emt 00:00:35]}
Qe7 {[%clk 00:09:39]} {[%emt 00:01:16]} 26. Kb1 {[%clk 00:09:54]} {[%emt
00:00:48]} Rf5 {[%clk 00:09:14]} {[%emt 00:00:29]} 27. b3 {[%clk 00:09:02]}
{[%emt 00:00:58]} Nxc3+ {[%clk 00:09:05]} {[%emt 00:00:14]} 28. Ka1 {[%clk
00:08:10]} {[%emt 00:00:54]} Qg7 {[%clk 00:08:58]} {[%emt 00:00:13]} 29. Qh6
{[%clk 00:08:06]} {[%emt 00:00:09]} Ne4+ {[%clk 00:07:50]} {[%emt 00:01:14]} 30.
Qxg7+ {[%clk 00:08:06]} {[%emt 00:00:05]} Kxg7 {[%clk 00:07:54]} {[%emt
00:00:01]} 31. Rhg1 {[%clk 00:07:05]} {[%emt 00:01:06]} Kf6 {[%clk 00:07:32]}
{[%emt 00:00:27]} 32. Kb2 {[%clk 00:06:52]} {[%emt 00:00:18]} Rh5 {[%clk
00:07:30]} {[%emt 00:00:07]} 33. Rh1 {[%clk 00:06:47]} {[%emt 00:00:10]} Rxh1
{[%clk 00:07:04]} {[%emt 00:00:31]} 34. Rxh1 {[%clk 00:06:49]} {[%emt
00:00:03]} h5 {[%clk 00:07:05]} {[%emt 00:00:04]} 35. c4 {[%clk 00:05:55]}
{[%emt 00:00:59]} Kf5 {[%clk 00:07:03]} {[%emt 00:00:07]} 36. Rg1 {[%clk
00:05:00]} {[%emt 00:01:00]} d4 {[%clk 00:06:39]} {[%emt 00:00:28]} 37. Kc2
{[%clk 00:04:47]} {[%emt 00:00:19]} c5 {[%clk 00:06:43]} {[%emt 00:00:01]} 38.
Kd3 {[%clk 00:04:40]} {[%emt 00:00:12]} Nf2+ {[%clk 00:06:45]} {[%emt
00:00:03]} 39. Ke2 {[%clk 00:04:30]} {[%emt 00:00:15]} Nh3 {[%clk 00:06:48]}
{[%emt 00:00:02]} 40. b4 {[%clk 00:03:02]} {[%emt 00:01:34]} Nxg1+ {[%clk
00:06:48]} {[%emt 00:00:04]} 0-1

[Event "Rapid Tournament (RAP)"]
[Site "Biel, Switzerland"]
[Date "2026.07.12"]
[Round "7.47"]
[White "Grimaldi, Francois-Xavier"]
[Black "Materia, Matteo"]
[Result "0-1"]
[TimeControl "15 + 5"]
[WhiteTitle "-"]
[BlackTitle "-"]
[WhiteFideId "1367706"]
[BlackFideId "45150575"]
[WhiteElo "1783"]
[BlackElo "1868"]

1. e4 {[%clk 00:15:08]} {[%emt 00:00:01]} e5 {[%clk 00:15:09]} 2. Nf3 {[%clk
00:15:12]} {[%emt 00:00:02]} Nc6 {[%clk 00:15:14]} 3. Bc4 {[%clk 00:15:16]} Nf6
{[%clk 00:15:16]} {[%emt 00:00:02]} 4. d3 {[%clk 00:15:19]} {[%emt 00:00:02]}
Bc5 {[%clk 00:15:15]} {[%emt 00:00:06]} 5. c3 {[%clk 00:15:23]} {[%emt
00:00:03]} h6 {[%clk 00:13:58]} {[%emt 00:01:21]} 6. O-O {[%clk 00:14:31]}
{[%emt 00:00:56]} O-O {[%clk 00:11:32]} {[%emt 00:02:31]} 7. Re1 {[%clk
00:13:11]} {[%emt 00:01:25]} Bb6 {[%clk 00:11:19]} {[%emt 00:00:18]} 8. h3
{[%clk 00:12:36]} {[%emt 00:00:41]} d6 {[%clk 00:11:19]} {[%emt 00:00:05]} 9.
a4 {[%clk 00:12:21]} {[%emt 00:00:20]} a5 {[%clk 00:11:16]} {[%emt 00:00:07]}
10. Nbd2 {[%clk 00:12:00]} {[%emt 00:00:26]} Qe7 {[%clk 00:09:14]} {[%emt
00:02:07]} 11. Nf1 {[%clk 00:11:54]} {[%emt 00:00:11]} Be6 {[%clk 00:09:16]}
{[%emt 00:00:04]} 12. Bxe6 {[%clk 00:10:50]} {[%emt 00:01:09]} Qxe6 {[%clk
00:09:10]} {[%emt 00:00:11]} 13. Be3 {[%clk 00:10:48]} {[%emt 00:00:07]} Bxe3
{[%clk 00:08:58]} {[%emt 00:00:16]} 14. Nxe3 {[%clk 00:10:26]} {[%emt
00:00:27]} Ne7 {[%clk 00:07:32]} {[%emt 00:01:31]} 15. Qc2 {[%clk 00:09:04]}
{[%emt 00:01:28]} Nh5 {[%clk 00:07:23]} {[%emt 00:00:14]} 16. d4 {[%clk
00:07:25]} {[%emt 00:01:44]} Nf4 {[%clk 00:07:08]} {[%emt 00:00:19]} 17. d5
{[%clk 00:06:28]} {[%emt 00:01:03]} Qd7 {[%clk 00:06:12]} {[%emt 00:01:01]} 18.
Kh2 {[%clk 00:06:19]} {[%emt 00:00:14]} f5 {[%clk 00:05:26]} {[%emt 00:00:51]}
19. exf5 {[%clk 00:05:49]} {[%emt 00:00:35]} Nxf5 {[%clk 00:05:30]} {[%emt
00:00:01]} 20. Nxf5 {[%clk 00:05:52]} {[%emt 00:00:02]} Rxf5 {[%clk 00:05:14]}
{[%emt 00:00:20]} 21. Qe4 {[%clk 00:05:38]} {[%emt 00:00:19]} Raf8 {[%clk
00:05:07]} {[%emt 00:00:12]} 22. Re3 {[%clk 00:05:03]} {[%emt 00:00:41]} Qf7
{[%clk 00:04:25]} {[%emt 00:00:46]} 23. Rf1 {[%clk 00:03:45]} {[%emt 00:01:23]}
Nxd5 {[%clk 00:04:19]} {[%emt 00:00:12]} 24. Rd3 {[%clk 00:03:15]} {[%emt
00:00:35]} Nf4 {[%clk 00:04:20]} {[%emt 00:00:03]} 25. Re3 {[%clk 00:03:19]}
Qd5 {[%clk 00:02:56]} {[%emt 00:01:29]} 26. Qxd5+ Nxd5 {[%clk 00:03:00]} 27.
Re4 {[%clk 00:02:47]} {[%emt 00:00:02]} Nf4 {[%clk 00:02:59]} {[%emt 00:00:05]}
28. Nh4 {[%clk 00:02:24]} {[%emt 00:00:28]} R5f6 {[%clk 00:02:58]} {[%emt
00:00:06]} 29. g3 {[%clk 00:01:23]} {[%emt 00:01:06]} Nd3 {[%clk 00:02:46]}
{[%emt 00:00:17]} 30. f4 {[%clk 00:00:44]} {[%emt 00:00:45]} exf4 {[%clk
00:02:24]} {[%emt 00:00:27]} 31. gxf4 {[%clk 00:00:46]} {[%emt 00:00:03]} Rxf4
{[%clk 00:02:15]} {[%emt 00:00:14]} 32. Rfxf4 {[%clk 00:00:44]} {[%emt
00:00:07]} Rxf4 {[%clk 00:02:18]} {[%emt 00:00:02]} 33. Rxf4 {[%clk 00:00:41]}
{[%emt 00:00:08]} Nxf4 {[%clk 00:02:21]} 34. Kg3 {[%clk 00:00:45]} Nd3 {[%clk
00:02:24]} {[%emt 00:00:02]} 35. b3 {[%clk 00:00:45]} {[%emt 00:00:06]} Nc5
{[%clk 00:02:23]} {[%emt 00:00:05]} 36. b4 {[%clk 00:00:46]} {[%emt 00:00:05]}
axb4 {[%clk 00:02:21]} {[%emt 00:00:07]} 37. cxb4 {[%clk 00:00:49]} {[%emt
00:00:02]} Nxa4 {[%clk 00:02:25]} {[%emt 00:00:01]} 38. Nf5 {[%clk 00:00:54]}
Kf7 {[%clk 00:02:22]} {[%emt 00:00:07]} 39. Kf4 {[%clk 00:00:55]} {[%emt
00:00:04]} Nb6 {[%clk 00:02:21]} {[%emt 00:00:06]} 40. Ke4 {[%clk 00:00:52]}
{[%emt 00:00:08]} Nd7 {[%clk 00:02:11]} {[%emt 00:00:16]} 41. Kd5 {[%clk
00:00:43]} {[%emt 00:00:14]} Nf6+ {[%clk 00:02:06]} {[%emt 00:00:09]} 42. Kd4
{[%clk 00:00:42]} {[%emt 00:00:06]} h5 {[%clk 00:01:51]} {[%emt 00:00:20]} 43.
b5 {[%clk 00:00:42]} {[%emt 00:00:06]} g5 {[%clk 00:01:48]} {[%emt 00:00:07]}
44. Ke3 {[%clk 00:00:18]} {[%emt 00:00:29]} g4 {[%clk 00:01:45]} {[%emt
00:00:08]} 45. hxg4 {[%clk 00:00:19]} {[%emt 00:00:05]} hxg4 {[%clk 00:01:49]}
46. Kf4 {[%clk 00:00:21]} {[%emt 00:00:03]} Ke6 {[%clk 00:01:42]} {[%emt
00:00:11]} 47. Ke4 {[%clk 00:00:14]} {[%emt 00:00:13]} d5+ {[%clk 00:01:16]}
{[%emt 00:00:31]} 48. Kf4 {[%clk 00:00:18]} {[%emt 00:00:02]} c5 {[%clk
00:01:10]} {[%emt 00:00:11]} 49. bxc6 {[%clk 00:00:13]} {[%emt 00:00:09]} bxc6
{[%clk 00:01:13]} {[%emt 00:00:01]} 50. Nd4+ {[%clk 00:00:07]} {[%emt
00:00:12]} Kd6 {[%clk 00:01:13]} {[%emt 00:00:06]} 51. Ke3 {[%clk 00:00:10]}
{[%emt 00:00:02]} Ne4 {[%clk 00:01:07]} {[%emt 00:00:10]} 52. Nf5+ {[%clk
00:00:07]} {[%emt 00:00:08]} Kc5 {[%clk 00:01:05]} {[%emt 00:00:07]} 53. Kd3
{[%clk 00:00:08]} {[%emt 00:00:04]} g3 {[%clk 00:01:09]} {[%emt 00:00:02]} 54.
Ne3 {[%clk 00:00:06]} {[%emt 00:00:06]} Kd6 {[%clk 00:01:03]} {[%emt 00:00:11]}
55. Kd4 {[%clk 00:00:07]} {[%emt 00:00:05]} c5+ {[%clk 00:01:07]} 56. Kd3
{[%clk 00:00:10]} {[%emt 00:00:02]} Ke5 {[%clk 00:01:04]} {[%emt 00:00:08]} 57.
Ng2 {[%clk 00:00:10]} {[%emt 00:00:05]} c4+ {[%clk 00:01:06]} {[%emt 00:00:03]}
58. Ke3 {[%clk 00:00:12]} {[%emt 00:00:03]} d4+ {[%clk 00:01:03]} {[%emt
00:00:08]} 59. Ke2 {[%clk 00:00:11]} {[%emt 00:00:07]} c3 {[%clk 00:00:56]}
{[%emt 00:00:12]} 60. Kd3 {[%clk 00:00:12]} {[%emt 00:00:03]} Nc5+ {[%clk
00:00:59]} {[%emt 00:00:01]} 61. Kc2 {[%clk 00:00:14]} {[%emt 00:00:04]} Ke4
{[%clk 00:01:00]} {[%emt 00:00:04]} 62. Ne1 {[%clk 00:00:10]} {[%emt 00:00:09]}
Ke3 {[%clk 00:01:02]} {[%emt 00:00:03]} 63. Ng2+ {[%clk 00:00:10]} {[%emt
00:00:05]} Kf2 {[%clk 00:01:06]} {[%emt 00:00:01]} 64. Nf4 {[%clk 00:00:14]} g2
{[%clk 00:01:10]} {[%emt 00:00:01]} 65. Nxg2 {[%clk 00:00:17]} {[%emt
00:00:01]} Kxg2 {[%clk 00:01:14]} {[%emt 00:00:02]} 66. Kd1 {[%clk 00:00:20]}
{[%emt 00:00:03]} d3 {[%clk 00:01:18]} {[%emt 00:00:01]} 67. Ke1 {[%clk
00:00:21]} {[%emt 00:00:03]} Nb3 {[%clk 00:01:20]} {[%emt 00:00:03]} 68. Kd1
{[%clk 00:00:23]} {[%emt 00:00:03]} c2+ {[%clk 00:01:23]} {[%emt 00:00:03]} 0-1